bitfinex-derivatives/quotes_SOLF0:USTF0_20250720
["timestamp","ask_amount","ask_price","bid_price","bid_amount"]
[1752976755121,3.11,177.99,177.97,3.19]
[1752976755322,4.97179477,177.98,177.97,3.19]
[1752976755518,3.11,177.97,177.95,3.19]
[1752976755718,1.86179477,177.95,177.93,220.0893429]
[1752976756120,5.6168,177.94,177.93,220.0893429]
[1752976756319,3.11,177.94,177.85,1.86179477]
[1752976756620,4.97179477,177.93,177.9,5.618]
[1752976756812,3.11,177.92,177.91,3.19]
[1752976757721,3.11,177.92,177.91,8.8077]
[1752976758223,4.97179477,177.93,177.92,3.19]
[1752976762420,7.47889477,177.93,177.86,106.7]
[1752976762620,3.13,177.92,177.91,3.29]
[1752976763522,5.6176,177.92,177.89,3.29]
[1752976763822,3.13,177.9,177.89,3.29]
[1752976765326,1.86179477,177.91,177.89,3.29]
[1752976766828,4.99179477,177.94,177.9,3.29]
[1752976768226,4.99179477,177.94,177.91,5.6177]
[1752976768526,4.99179477,177.96,177.92,3.29]
[1752976769327,4.99179477,177.96,177.92,8.9072]
[1752976769523,3.13,177.95,177.93,3.29]
[1752976770026,3.13,177.95,177.94,3.29]
[1752976776329,3.13,177.95,177.92,3.29]
[1752976776534,1.86179477,177.94,177.92,3.29]
[1752976776834,3.13,177.93,177.92,3.29]
[1752976777427,1.86179477,177.94,177.92,3.29]
[1752976777633,4.99179477,177.94,177.92,3.29]
[1752976778829,5.6165,177.95,177.92,3.29]
[1752976778830,4.99179477,177.96,177.92,3.29]
[1752976779132,4.99179477,177.98,177.92,3.29]
[1752976779532,3.13,177.98,177.96,3.29]
[1752976780030,3.13,177.99,177.97,3.29]
[1752976780635,8.7455,177.99,177.98,3.29]
[1752976780831,3.13,177.99,177.95,3.29]
[1752976781027,5.6157,177.98,177.96,3.29]
[1752976781228,3.13,177.97,177.96,3.29]
[1752976785534,8.7458,177.97,177.96,3.29]
[1752976786632,8.7458,177.97,177.94,8.9067]
[1752976786840,3.13,177.96,177.95,3.29]
[1752976787145,3.13,177.95,177.93,3.29]
[1752976787535,3.13,177.95,177.94,3.29]
[1752976787838,8.7467,177.95,177.94,3.29]
[1752976788033,3.13,177.95,177.94,3.29]
[1752976797443,8.7465,177.95,177.93,5.6171]
[1752976797643,3.03,177.94,177.93,5.6171]
[1752976797848,3.03,177.94,177.92,8.6972]
[1752976798545,3.03,177.94,177.93,3.08]
[1752976798947,3.03,177.94,177.93,8.6971]
[1752976800242,3.03,177.94,177.93,3.08]
[1752976800748,4.89179477,177.96,177.93,3.08]
[1752976800940,4.89179477,177.96,177.95,3.08]
[1752976801141,10.50799477,177.96,177.95,3.08]
[1752976804850,4.89179477,177.96,177.95,3.08]
[1752976805543,10.50799477,177.96,177.95,3.08]
[1752976808162,8.6462,177.96,177.95,3.08]
[1752976808358,10.50799477,177.96,177.95,3.08]
[1752976811265,11.2276,178.04,177.95,3.08]
[1752976811465,4.89179477,177.99,177.95,5.6163]
[1752976811661,3.03,177.98,177.96,3.08]
[1752976811861,5.6158,177.97,177.96,3.08]
[1752976812065,8.6458,177.97,177.96,3.08]
[1752976812467,5.6165,177.95,177.94,3.08]
[1752976812664,8.6465,177.95,177.94,3.08]
[1752976812868,3.03,177.95,177.94,3.08]
[1752976814068,8.6465,177.95,177.94,3.08]
[1752976816664,3.03,177.95,177.94,3.08]
[1752976816867,3.03,177.96,177.94,3.08]
[1752976817774,3.03,177.98,177.94,3.08]
[1752976817968,3.03,177.98,177.96,3.08]
[1752976818568,8.6456,177.98,177.96,3.08]
[1752976819366,5.6156,177.98,177.96,3.08]
[1752976819667,3.03,177.97,177.96,3.08]
[1752976823572,8.6458,177.97,177.96,3.08]
[1752976824175,8.8253,177.99,177.94,3.24]
[1752976824370,3.21,177.98,177.94,3.24]
[1752976824567,3.21,177.99,177.94,3.24]
[1752976824767,3.21,177.97,177.94,3.24]
[1752976824967,3.21,177.96,177.95,5.6163]
[1752976825173,3.21,177.96,177.95,8.8563]
[1752976825570,3.21,177.96,177.93,109.14]
[1752976825571,3.21,177.95,177.93,109.14]
[1752976825870,3.21,177.97,177.94,3.24]
[1752976826061,3.21,177.97,177.94,8.8566]
[1752976826062,8.826,177.97,177.94,8.8566]
[1752976826266,3.21,177.96,177.95,3.24]
[1752976828076,8.8262,177.96,177.95,3.24]
[1752976828766,3.21,177.94,177.93,3.24]
[1752976829275,3.21,177.94,177.93,8.8571]
[1752976829479,3.21,177.95,177.93,8.8571]
[1752976829669,3.21,177.95,177.94,3.24]
[1752976830268,8.8265,177.95,177.94,3.24]
[1752976830477,3.21,177.94,177.89,3.24]
[1752976830673,3.21,177.9,177.88,105.84]
[1752976830876,1.86179477,177.93,177.88,105.84]
[1752976830877,5.07179477,177.89,177.88,105.84]
[1752976831672,3.21,177.88,177.84,3.24]
[1752976831975,5.6205,177.83,177.81,3.24]
[1752976832174,3.21,177.82,177.81,3.24]
[1752976834779,3.21,177.82,177.81,8.8609]
[1752976836587,3.21,177.82,177.81,3.24]
[1752976837071,8.8306,177.82,177.81,3.24]
[1752976837475,1.86179477,177.83,177.77,5.6222]
[1752976837672,5.07179477,177.79,177.77,5.6222]
[1752976837883,1.86179477,177.79,177.77,5.6222]
[1752976838079,3.21,177.78,177.77,8.8622]
[1752976838683,3.21,177.78,177.77,5.6222]
[1752976838884,3.21,177.78,177.77,8.8622]
[1752976840678,3.21,177.78,177.77,3.24]
[1752976840885,3.21,177.78,177.76,105.78]
[1752976841185,5.07179477,177.77,177.76,109.02]
[1752976841981,5.07179477,177.77,177.76,105.78]
[1752976842183,5.07179477,177.77,177.76,109.02]
[1752976843683,3.21,177.76,177.64,3.24]
[1752976843883,1.86179477,177.71,177.66,3.24]
[1752976844185,3.21,177.7,177.67,105.76]
[1752976844387,3.21,177.7,177.69,3.24]
[1752976844982,3.21,177.7,177.68,5.6249]
[1752976845179,1.86179477,177.71,177.68,3.24]
[1752976845783,5.07179477,177.69,177.68,3.24]
[1752976845983,3.21,177.68,177.67,3.24]
[1752976846179,8.83,177.68,177.63,0.03595548]
[1752976846383,3.21,177.64,177.6,3.24]
[1752976846584,1.86179477,177.75,177.59,105.74]
[1752976846585,3.21,177.62,177.59,105.74]
[1752976846788,3.21,177.62,177.61,3.24]
[1752976846989,1.86179477,177.63,177.59,8.8678]
[1752976847181,3.21,177.6,177.59,8.8678]
[1752976847386,3.21,177.6,177.59,3.24]
[1752976847687,3.21,177.6,177.56,105.76]
[1752976847881,1.86179477,177.59,177.56,3.24]
[1752976848085,1.86179477,177.59,177.57,3.24]
[1752976848295,1.86179477,177.6,177.56,3.24]
[1752976848486,3.21,177.58,177.57,3.24]
[1752976848792,3.21,177.61,177.57,3.24]
[1752976848986,3.21,177.59,177.56,3.24]
[1752976849183,3.21,177.59,177.55,3.24]
[1752976849383,5.07179477,177.6,177.56,3.24]
[1752976849583,1.86179477,177.62,177.61,5.6272]
[1752976849890,3.21,177.61,177.6,3.24]
[1752976850087,3.21,177.61,177.55,3.24]
[1752976850284,1.86179477,177.59,177.55,3.24]
[1752976850490,1.86179477,177.59,177.54,105.74]
[1752976850690,1.86179477,177.59,177.55,3.2]
[1752976850884,1.86179477,177.59,177.54,105.74]
[1752976850885,1.86179477,177.57,177.56,3.2]
[1752976851290,4.87179477,177.57,177.56,3.2]
[1752976851591,3.01,177.61,177.55,3.2]
[1752976851790,1.86179477,177.63,177.55,3.2]
[1752976852095,3.01,177.62,177.55,3.2]
[1752976852490,3.01,177.62,177.61,5.6272]
[1752976852889,5.6248,177.69,177.64,5.6261]
[1752976853093,3.01,177.64,177.61,3.2]
[1752976853291,3.01,177.62,177.55,3.2]
[1752976853593,3.01,177.62,177.54,105.74]
[1752976853594,3.01,177.62,177.59,3.2]
[1752976853985,1.86179477,177.63,177.54,107.60179477]
[1752976854184,4.87179477,177.63,177.55,3.2]
[1752976854394,3.01,177.62,177.55,3.2]
[1752976855198,1.86179477,177.59,177.46,3.2]
[1752976855491,3.01,177.58,177.51,3.2]
[1752976855995,3.01,177.57,177.56,8.8288]
[1752976856193,4.87179477,177.57,177.51,3.2]
[1752976856388,4.87179477,177.57,177.52,3.2]
[1752976856587,4.87179477,177.59,177.52,3.2]
[1752976856796,1.86179477,177.66,177.53,5.6295]
[1752976856797,1.86179477,177.57,177.53,5.6295]
[1752976857094,3.01,177.54,177.49,105.74]
[1752976857294,3.01,177.53,177.46,3.2]
[1752976857497,3.01,177.51,177.46,3.2]
[1752976857690,3.01,177.53,177.46,3.2]
[1752976858094,1.86179477,177.57,177.46,3.2]
[1752976858287,1.86179477,177.48,177.46,3.2]
[1752976858493,3.01,177.47,177.44,3.2]
[1752976858894,3.01,177.45,177.44,3.2]
[1752976859095,3.01,177.45,177.44,8.8326]
[1752976859397,3.01,177.45,177.42,3.2]
[1752976859591,1.86179477,177.46,177.41,3.2]
[1752976859990,1.86179477,177.44,177.42,5.6332]
[1752976860295,3.01,177.43,177.34,108.98]
[1752976860497,3.01,177.42,177.39,5.6339]
[1752976860701,3.01,177.4,177.35,3.2]
[1752976860899,3.01,177.4,177.35,108.98]
[1752976861094,3.01,177.47,177.29,0.98116612]
[1752976861289,1.86179477,177.43,177.32,3.2]
[1752976861592,3.01,177.44,177.36,1.86179477]
[1752976861790,1.86179477,177.57,177.43,3.2]
[1752976861999,3.01,177.46,177.41,3.2]
[1752976862201,3.01,177.45,177.44,8.8324]
[1752976862499,3.01,177.47,177.41,3.2]
[1752976862705,3.01,177.56,177.41,3.2]
[1752976862902,3.01,177.46,177.41,3.2]
[1752976863095,3.01,177.45,177.44,5.6324]
[1752976863297,3.01,177.45,177.44,8.8324]
[1752976864499,3.01,177.48,177.47,5.6315]
[1752976865100,1.86179477,177.51,177.47,3.2]
[1752976865300,3.01,177.49,177.48,3.2]
[1752976865694,3.01,177.49,177.48,8.8313]
[1752976866294,3.01,177.49,177.48,3.2]
[1752976866498,3.01,177.48,177.47,8.8316]
[1752976866699,3.01,177.48,177.47,5.6316]
[1752976866891,3.01,177.48,177.47,8.8316]
[1752976867496,3.01,177.5,177.49,5.631]
[1752976868400,3.01,177.53,177.45,1.86179477]
[1752976868603,3.01,177.53,177.46,3.2]
[1752976868902,3.01,177.53,177.5,5.6305]
[1752976869103,3.01,177.52,177.45,1.86179477]
[1752976869304,3.01,177.52,177.51,3.2]
[1752976869802,7.49089477,177.55,177.45,1.86179477]
[1752976870003,3.01,177.51,177.5,3.2]
[1752976870398,3.01,177.51,177.5,8.8305]
[1752976870599,3.01,177.54,177.5,3.2]
[1752976870801,3.01,177.54,177.51,3.2]
[1752976871001,3.01,177.57,177.51,3.2]
[1752976871397,3.01,177.57,177.53,5.6295]
[1752976871601,3.01,177.57,177.53,8.8295]
[1752976872204,1.86179477,177.54,177.45,1.86179477]
[1752976872408,1.86179477,177.52,177.46,3.2]
[1752976872608,3.01,177.51,177.47,5.6316]
[1752976872909,3.01,177.51,177.47,8.8316]
[1752976873313,3.01,177.51,177.48,3.2]
[1752976875800,3.01,177.51,177.48,8.8312]
[1752976876003,3.01,177.5,177.48,8.8312]
[1752976876208,3.01,177.49,177.48,8.8312]
[1752976876405,3.01,177.49,177.48,3.2]
[1752976878111,3.01,177.49,177.4,3.2]
[1752976878418,3.01,177.47,177.4,3.2]
[1752976878610,3.01,177.47,177.42,5.6332]
[1752976879011,3.01,177.45,177.4,3.2]
[1752976879212,3.01,177.45,177.41,3.2]
[1752976879412,1.86179477,177.44,177.41,3.2]
[1752976879716,4.87179477,177.43,177.39,3.2]
[1752976879910,3.01,177.42,177.39,3.2]
[1752976880319,3.01,177.42,177.37,3.27]
[1752976880612,3.09,177.4,177.38,3.27]
[1752976880817,3.09,177.39,177.37,5.6348]
[1752976881214,3.09,177.39,177.38,3.27]
[1752976882215,3.09,177.38,177.37,3.27]
[1752976882812,3.09,177.41,177.37,3.27]
[1752976883011,3.09,177.42,177.38,3.27]
[1752976883416,3.09,177.42,177.38,8.9043]
[1752976883818,3.09,177.38,177.32,3.27]
[1752976884013,3.09,177.34,177.32,8.9062]
[1752976884214,3.09,177.33,177.32,3.27]
[1752976884519,3.09,177.38,177.32,3.27]
[1752976885120,3.09,177.38,177.35,5.6354]
[1752976885330,3.09,177.37,177.36,3.27]
[1752976885728,1.86179477,177.42,177.36,3.27]
[1752976885923,3.09,177.41,177.36,3.27]
[1752976886325,3.09,177.41,177.4,3.27]
[1752976886521,3.09,177.41,177.38,3.27]
[1752976886718,3.09,177.41,177.36,3.27]
[1752976886920,1.86179477,177.42,177.36,3.27]
[1752976887128,3.09,177.4,177.38,5.6342]
[1752976887323,3.09,177.4,177.38,3.27]
[1752976887524,1.86179477,177.42,177.39,3.27]
[1752976887525,3.09,177.41,177.39,3.27]
[1752976887723,3.09,177.39,177.31,3.27]
[1752976887923,3.09,177.35,177.32,105.78]
[1752976888229,3.09,177.34,177.33,3.27]
[1752976888524,1.86179477,177.48,177.33,3.27]
[1752976888725,3.09,177.38,177.33,3.27]
[1752976889127,3.09,177.37,177.33,3.27]
[1752976889425,3.09,177.36,177.34,3.27]
[1752976889628,3.09,177.42,177.34,3.27]
[1752976889821,3.09,177.41,177.34,3.27]
[1752976890021,3.09,177.4,177.38,5.6343]
[1752976890221,3.09,177.39,177.38,3.27]
[1752976890725,3.09,177.39,177.38,8.9045]
[1752976891630,1.86179477,177.41,177.39,5.6341]
[1752976891825,3.09,177.4,177.39,8.9041]
[1752976892317,1.86179477,177.41,177.33,3.27]
[1752976892517,1.86179477,177.48,177.34,3.27]
[1752976892518,3.09,177.36,177.34,3.27]
[1752976892727,3.09,177.35,177.34,3.27]
[1752976893523,4.95179477,177.37,177.34,8.9058]
[1752976893721,4.95179477,177.37,177.35,3.27]
[1752976894028,3.09,177.36,177.35,3.27]
[1752976894922,1.86179477,177.38,177.35,3.27]
[1752976895124,3.09,177.37,177.36,3.27]
[1752976896222,3.09,177.37,177.33,105.78]
[1752976896428,3.09,177.36,177.33,105.78]
[1752976896634,3.09,177.36,177.35,3.27]
[1752976897129,3.09,177.44,177.36,3.27]
[1752976897319,1.86179477,177.48,177.37,3.27]
[1752976897320,3.09,177.39,177.37,3.27]
[1752976897628,4.95179477,177.41,177.4,3.27]
[1752976898028,1.86179477,177.48,177.4,3.27]
[1752976898232,1.86179477,177.42,177.4,3.27]
[1752976898433,1.86179477,177.42,177.41,3.27]
[1752976898630,4.95179477,177.44,177.43,3.27]
[1752976899127,1.86179477,177.57,177.43,105.78]
[1752976899332,3.09,177.47,177.46,3.27]
[1752976899531,1.86179477,177.57,177.46,3.27]
[1752976899532,1.86179477,177.5,177.46,3.27]
[1752976899733,1.86179477,177.5,177.43,105.78]
[1752976899734,3.09,177.49,177.47,3.27]
[1752976899930,1.86179477,177.5,177.47,3.27]
[1752976900136,1.86179477,177.5,177.39,4.69401978]
[1752976900137,1.86179477,177.57,177.45,105.78]
[1752976900338,1.86179477,177.5,177.47,3.27]
[1752976900537,4.95179477,177.5,177.48,3.27]
[1752976900835,4.95179477,177.5,177.49,3.27]
[1752976901037,3.09,177.62,177.49,3.27]
[1752976901334,3.09,177.62,177.45,105.78]
[1752976901335,3.09,177.51,177.5,3.27]
[1752976901537,6.16309541,177.53,177.46,3.27]
[1752976901738,3.07309541,177.53,177.46,3.27]
[1752976901932,3.09,177.52,177.47,5.6315]
[1752976902137,3.09,177.52,177.46,3.27]
[1752976902333,3.07309541,177.51,177.46,3.27]
[1752976902534,3.09,177.49,177.47,3.27]
[1752976902733,3.09,177.48,177.47,3.27]
[1752976903133,3.07309541,177.51,177.47,3.27]
[1752976903337,3.09,177.49,177.47,3.27]
[1752976903738,3.09,177.48,177.39,3.27]
[1752976903940,3.09,177.48,177.41,3.27]
[1752976904440,3.09,177.47,177.45,3.27]
[1752976904741,3.09,177.47,177.46,3.27]
[1752976905440,5.6307,177.51,177.46,3.27]
[1752976905636,3.09,177.49,177.47,3.27]
[1752976905835,3.09,177.49,177.45,5.6322]
[1752976906032,3.09,177.51,177.42,3.27]
[1752976907035,3.09,177.51,177.46,3.27]
[1752976907240,3.09,177.51,177.47,3.27]
[1752976907833,8.7204,177.51,177.47,3.27]
[1752976908037,3.09,177.49,177.47,3.27]
[1752976908439,3.09,177.5,177.44,3.27]
[1752976908633,3.09,177.48,177.45,3.27]
[1752976908844,3.07309541,177.49,177.45,3.27]
[1752976909045,3.09,177.46,177.45,3.27]
[1752976909245,3.07309541,177.49,177.45,3.27]
[1752976909442,3.07309541,177.49,177.46,3.27]
[1752976909643,3.09,177.47,177.46,3.27]
[1752976910436,3.07309541,177.51,177.41,3.07309541]
[1752976910641,3.05,177.5,177.42,3.14]
[1752976910839,3.05,177.5,177.44,5.6325]
[1752976911049,3.05,177.5,177.42,3.14]
[1752976911555,3.05,177.5,177.45,3.14]
[1752976911745,3.05,177.5,177.46,3.14]
[1752976912653,3.05,177.48,177.43,5.6329]
[1752976912840,3.05,177.46,177.41,3.14]
[1752976913040,3.05,177.46,177.42,3.14]
[1752976913445,3.05,177.45,177.43,3.14]
[1752976913640,3.05,177.45,177.44,3.14]
[1752976914648,3.05,177.47,177.39,3.14]
[1752976915049,3.07309541,177.51,177.41,3.14]
[1752976915249,5.62,177.75,177.38,105.7]
[1752976915250,3.05,177.5,177.47,3.14]
[1752976915458,3.05,177.52,177.47,3.14]
[1752976915651,3.05,177.52,177.48,5.6311]
[1752976915956,3.05,177.52,177.47,3.14]
[1752976916352,508.7076724,177.63,177.44,3.07309541]
[1752976916652,508.7076724,177.63,177.47,3.14]
[1752976916854,3.05,177.57,177.56,3.14]
[1752976917854,3.07309541,177.6,177.56,3.14]
[1752976918054,3.05,177.58,177.56,3.14]
[1752976918254,3.05,177.57,177.56,3.14]
[1752976920356,378.7,177.73,177.56,3.14]
[1752976920551,3.05,177.66,177.58,3.07309541]
[1752976920754,3.05,177.66,177.59,3.14]
[1752976920956,3.07309541,177.71,177.61,3.07309541]
[1752976921156,3.05,177.68,177.64,5.626]
[1752976921556,3.05,177.7,177.69,3.14]
[1752976921761,3.05,177.72,177.7,3.14]
[1752976922458,5.6225,177.76,177.71,3.14]
[1752976922652,16.8585,177.86,177.63,105.66]
[1752976922653,3.07309541,177.79,177.72,3.14]
[1752976922857,3.05,177.78,177.72,3.14]
[1752976923060,3.05,177.77,177.72,3.14]
[1752976923258,3.05,177.75,177.67,5.6251]
[1752976923454,3.05,177.75,177.68,3.14]
[1752976923863,3.05,177.74,177.68,3.14]
[1752976924664,3.05,177.74,177.65,3.07309541]
[1752976924665,3.05,177.74,177.69,3.14]
[1752976924961,3.05,177.79,177.7,3.14]
[1752976925563,3.05,177.79,177.71,5.624]
[1752976925865,3.05,177.79,177.72,3.14]
[1752976926059,3.05,177.79,177.73,5.6233]
[1752976926265,3.05,177.79,177.74,3.14]
[1752976926455,3.05,177.81,177.74,3.14]
[1752976927657,5.6213,177.8,177.74,3.14]
[1752976927864,3.05,177.79,177.74,3.14]
[1752976928066,3.07309541,177.8,177.74,3.14]
[1752976928067,3.05,177.78,177.74,3.14]
[1752976928862,3.05,177.78,177.73,5.6233]
[1752976929063,3.05,177.78,177.76,3.14]
[1752976929965,3.05,177.81,177.75,3.14]
[1752976930561,3.05,177.81,177.75,6.21309541]
[1752976930868,3.05,177.83,177.76,3.14]
[1752976931170,3.07309541,177.84,177.75,3.07309541]
[1752976931471,3.05,177.83,177.81,3.14]
[1752976931771,3.05,177.82,177.81,3.14]
[1752976931972,3.05,177.82,177.74,3.14]
[1752976932166,3.07309541,177.87,177.77,3.07309541]
[1752976932366,3.07309541,177.9,177.8,3.14]
[1752976932562,3.05,177.89,177.8,3.14]
[1752976932765,3.07309541,177.88,177.82,3.14]
[1752976932966,3.05,177.86,177.83,3.14]
[1752976933267,3.05,177.85,177.84,3.14]
[1752976933476,3.05,177.87,177.85,3.14]
[1752976933780,3.05,177.88,177.8,3.14]
[1752976934873,3.05,177.88,177.73,105.56]
[1752976934874,3.05,177.88,177.82,3.14]
[1752976935365,3.05,177.9,177.83,3.07309541]
[1752976935567,3.05,177.9,177.84,3.14]
[1752976935868,3.05,177.9,177.87,3.14]
[1752976936073,3.05,177.9,177.88,3.14]
[1752976936371,3.05,177.92,177.84,3.14]
[1752976937369,3.05,177.92,177.88,3.14]
[1752976937564,3.07309541,177.94,177.87,5.6188]
[1752976937760,3.05,177.92,177.9,3.14]
[1752976938161,3.05,177.93,177.87,3.14]
[1752976938575,3.07309541,177.92,177.87,3.14]
[1752976938875,6.12309541,177.91,177.82,3.14]
[1752976939070,3.05,177.91,177.84,3.14]
[1752976939973,3.05,177.91,177.82,3.14]
[1752976940573,3.05,177.91,177.84,3.0]
[1752976941171,6.34309541,177.93,177.84,3.0]
[1752976941877,3.07309541,177.91,177.84,3.0]
[1752976942172,3.27,177.9,177.84,3.0]
[1752976942777,3.27,177.89,177.84,8.6199]
[1752976942977,3.27,177.88,177.84,5.6199]
[1752976943176,3.07309541,177.89,177.84,3.0]
[1752976943368,3.27,177.88,177.84,3.0]
[1752976944272,3.27,177.86,177.85,3.0]
[1752976944681,3.27,177.9,177.86,3.0]
[1752976945075,3.27,177.92,177.86,3.0]
[1752976945278,3.27,177.91,177.87,5.6187]
[1752976945575,3.27,177.93,177.84,3.0]
[1752976945978,3.07309541,177.92,177.84,3.0]
[1752976946180,3.07309541,177.9,177.84,3.0]
[1752976946379,3.27,177.87,177.79,3.0]
[1752976946674,3.27,177.89,177.88,3.0]
[1752976946873,3.27,177.89,177.82,3.07309541]
[1752976946874,3.27,177.91,177.89,3.0]
[1752976947182,3.27,177.9,177.89,3.0]
[1752976947775,3.27,177.92,177.91,3.0]
[1752976947971,3.27,177.92,177.84,3.07309541]
[1752976948177,3.27,177.91,177.85,3.0]
[1752976948983,3.27,177.91,177.86,5.619]
[1752976949186,3.27,177.9,177.85,3.0]
[1752976949384,3.27,177.9,177.83,3.0]
[1752976950781,3.27,177.88,177.84,3.0]
[1752976951077,3.27,177.86,177.8,3.0]
[1752976951782,3.27,177.91,177.87,5.6187]
[1752976951984,3.27,177.91,177.88,3.0]
[1752976952388,3.27,177.89,177.88,3.0]
[1752976952788,3.27,177.91,177.89,3.0]
[1752976952989,3.27,177.9,177.89,3.0]
[1752976953289,3.27,177.9,177.83,3.07309541]
[1752976953486,3.27,177.89,177.88,3.0]
[1752976953886,3.27,177.89,177.88,8.6186]
[1752976954688,3.27,177.92,177.89,3.0]
[1752976954890,3.27,177.91,177.9,3.0]
[1752976955091,106.49829754,178.0,177.92,5.6174]
[1752976955092,3.07309541,177.95,177.92,5.6174]
[1752976955291,3.27,177.94,177.92,5.6174]
[1752976955588,3.27,177.93,177.92,5.6174]
[1752976956184,3.27,177.93,177.79,116.6231]
[1752976956388,3.27,177.9,177.86,3.0]
[1752976956788,3.27,177.9,177.82,3.0]
[1752976956983,3.27,177.9,177.84,3.0]
[1752976959692,3.27,177.89,177.88,5.6184]
[1752976959892,3.27,177.89,177.88,8.6184]
[1752976960193,1.87727596,177.92,177.89,3.0]
[1752976960388,3.27,177.9,177.89,3.0]
[1752976960895,3.27,177.9,177.83,1.87727596]
[1752976961195,3.27,177.9,177.84,3.0]
[1752976961395,5.14727596,177.9,177.84,3.0]
[1752976961590,3.27,177.89,177.84,3.0]
[1752976961985,1.87727596,177.9,177.82,1.87727596]
[1752976962186,5.14727596,177.9,177.83,3.0]
[1752976963293,1.87727596,177.9,177.85,3.0]
[1752976963494,3.27,177.89,177.85,3.0]
[1752976963893,106.49829754,178.0,177.81,1.87727596]
[1752976963894,3.27,177.87,177.81,3.0]
[1752976964594,3.27,177.87,177.83,3.0]
[1752976965394,3.27,177.89,177.86,3.0]
[1752976965592,3.27,177.9,177.86,3.0]
[1752976965793,3.27,177.9,177.89,5.6184]
[1752976965992,5.6166,177.95,177.89,5.6184]
[1752976965993,1.87727596,177.94,177.89,3.0]
[1752976966192,3.27,177.93,177.89,3.0]
[1752976966401,3.27,177.92,177.89,3.0]
[1752976966696,3.27,177.92,177.91,3.0]
[1752976966898,3.27,177.92,177.87,3.0]
[1752976967094,1.87727596,177.94,177.87,3.0]
[1752976967095,3.27,177.91,177.87,3.0]
[1752976967397,3.27,177.9,177.89,5.6184]
[1752976967593,3.27,177.9,177.89,8.6184]
[1752976967800,3.27,177.9,177.89,5.6184]
[1752976967996,3.27,177.9,177.86,4.65729257]
[1752976967997,5.14727596,177.9,177.86,3.0]
[1752976968197,3.27,177.89,177.86,3.0]
[1752976968696,3.27,177.89,177.88,5.6187]
[1752976971302,3.27,177.89,177.88,8.7887]
[1752976972105,3.21,177.88,177.84,7.82729257]
[1752976972298,1.87727596,177.85,177.82,7.82729257]
[1752976972494,3.21,177.82,177.8,3.17]
[1752976972698,3.21,177.82,177.81,5.6209]
[1752976973101,5.08727596,177.82,177.81,5.6209]